[Event "44th Chess Olympiad Women 2022"]
[Site "Chennai"]
[Date "2022.07.30"]
[Round "2.39"]
[White "Mendoza, Shania Mae"]
[Black "Alvarez Gutierrez, Patricia"]
[Result "1-0"]
[ECO "B10"]
[WhiteElo "2153"]
[BlackElo "1715"]
[Annotator "TA"]
[PlyCount "57"]
[EventDate "2022.07.29"]
[EventType "team-tourn"]
[EventCountry "IND"]
[SourceTitle "playchess.com"]
[Source "ChessBase"]
[SourceQuality "1"]
[WhiteTeam "Philippines"]
[BlackTeam "Nicaragua"]
[WhiteTeamCountry "PHI"]
[BlackTeamCountry "NCA"]
[TimeControl "40/5400+30:1800+30"]

{[%evp 9,57,0,0,0,0,0,6,0,13,4,55,68,75,65,71,68,126,122,195,86,118,96,105,98,85,96,90,72,89,99,129,100,158,102,129,130,177,176,550,534,535,472,472,472,462,460,1284,1211,29998,29999]} 1. e4 {[%emt 0:00:32]} c6 {[%emt 0:00:12]} 2. Nf3 {[%emt 0:00:53]} d5 {[%emt 0:00:11]} 3. exd5 {[%emt 0:00:51]} cxd5 {[%emt 0:00:11]} 4. Ne5 {[%emt 0:00:10]} Nc6 {[%emt 0:02:40]} 5. Bb5 {[%emt 0:03:30]} Qc7 {[%emt 0:04:58]} 6. d4 {[%emt 0:02:46] B10: Caro-Kann: 2 d3 and 2 c4.} e6 {[%emt 0:01:11]} 7. c4 {[%emt 0:09:31]} Bb4+ {[%emt 0:14:13] [#]} 8. Nc3 $146 {[%emt 0:07:06] With the idea Bf4. The position is equal.} ({Predecessor:} 8. Bd2 Bxd2+ 9. Nxd2 Nge7 10. cxd5 exd5 11. Rc1 O-O 12. O-O Qb6 13. Bxc6 bxc6 14. Nb3 {½-½ (29) Jones,G (2670)-Mamedyarov,S (2770) Chess.com INT 2020}) 8... Nge7 {[%emt 0:03:10]} 9. Bf4 {[%emt 0:07:32][%cal Oe5g6] aiming for Ng6!} Qb6 {[%emt 0:10:33]} (9... a6 $2 10. Ng6 $1 {[%mdl 512]} e5 11. Bxe5 $1 Bxc3+ 12. bxc3 $18) ({Black should try} 9... Qa5 $11) 10. O-O $14 {[%emt 0:04:55]} Bxc3 {[%emt 0:03:04]} 11. bxc3 {[%emt 0:00:59]} O-O {[%emt 0:02:02]} 12. Rb1 {[%emt 0:06:09] Threatens to win with Bxc6.} Qa5 {[%emt 0:05:42]} ({Black should play} 12... Nxe5 $14 13. Bxe5 Qd8) 13. c5 $1 $16 {[%emt 0:15:08]} Qxc3 {[%emt 0:13:07] [#]} (13... f6 $16 14. Nxc6 bxc6) 14. Nxc6 {[%emt 0:09:46]} (14. Qa4 $1 $18 {has better winning chances.} Nxe5 15. Bxe5) 14... Nxc6 {[%emt 0:12:24]} 15. Bxc6 {[%emt 0:04:06]} bxc6 {[%emt 0:01:05]} 16. Qa4 {[%emt 0:05:40]} Qd3 {[%emt 0:05:39]} 17. Qxc6 {[%emt 0:00:31]} Ba6 {[%emt 0:00:12][%cal Od3d4]} 18. Rfd1 {[%emt 0:00:32]} Qe2 {[%emt 0:02:47]} 19. Re1 $36 {[%emt 0:02:04][%mdl 2048] Black is under strong pressure.} Qd3 {[%emt 0:02:55]} 20. Rb3 {[%emt 0:01:48]} Qc4 {[%emt 0:01:05]} ({Better is} 20... Rac8 21. Rxd3 Rxc6) 21. Rc1 {[%emt 0:04:03] 0x0.0019edd517ecdp-1022s more active pieces. The black rooks are badly placed.} (21. Rg3 $142) 21... Qe2 {[%emt 0:00:17]} 22. Rg3 {[%emt 0:02:24] Bh6 is the strong threat.} Rfc8 {[%emt 0:02:36]} (22... Rac8 $16 23. Qd6 Rfe8) 23. Qd6 $18 {[%emt 0:00:26]} Rd8 $2 {[%emt 0:01:23] [#]} (23... Bd3 {is a better chance.} 24. Re3 Qd2 25. Rxe6 Qb2) 24. Qe7 $1 {[%emt 0:00:41] Intending Qf6 and mate.} Bd3 {[%emt 0:04:29]} 25. c6 {[%emt 0:03:04][%cal Bc5c6,Bc6c7][%mdl 32]} Bg6 {[%emt 0:02:16]} 26. c7 {[%emt 0:00:14]} Rdc8 {[%emt 0:01:14]} 27. Rb3 {[%emt 0:00:06] Strongly threatening Rb8.} Qa6 {[%emt 0:01:14]} (27... e5 $142 28. Bxe5 h5) 28. Rb8 {[%emt 0:00:14]} e5 {[%emt 0:02:59]} 29. Qd8+ {[%emt 0:00:18] Weighted Error Value: White=0.14 (very precise) /Black=0.64} 1-0

[Event "44th Chess Olympiad Women 2022"]
[Site "Chennai"]
[Date "2022.07.30"]
[Round "2.39"]
[White "Ferrufino, Michelle"]
[Black "Fronda, Jan Jodilyn"]
[Result "1/2-1/2"]
[ECO "B23"]
[WhiteElo "1811"]
[BlackElo "2181"]
[Annotator "TA"]
[PlyCount "75"]
[EventDate "2022.07.29"]
[EventType "team-tourn"]
[EventCountry "IND"]
[SourceTitle "playchess.com"]
[Source "ChessBase"]
[SourceQuality "1"]
[WhiteTeam "Nicaragua"]
[BlackTeam "Philippines"]
[WhiteTeamCountry "NCA"]
[BlackTeamCountry "PHI"]
[TimeControl "40/5400+30:1800+30"]

{[%evp 9,75,-5,26,6,18,14,47,45,57,57,58,56,52,37,62,63,38,42,55,51,58,52,45,-11,-10,-19,-24,-25,6,5,4,4,4,4,4,4,4,4,4,4,4,0,10,10,10,3,13,0,9,0,0,0,13,12,28,7,8,0,0,0,0,0,0,0,0,0,0,0]} 1. e4 {[%emt 0:00:36]} c5 {[%emt 0:00:58]} 2. Nc3 {[%emt 0:00:16]} e6 {[%emt 0:00:11]} 3. f4 {[%emt 0:00:45]} d5 {[%emt 0:00:51]} 4. Nf3 {[%emt 0:00:35]} Nc6 {[%emt 0:02:28]} 5. Bb5 {[%emt 0:00:42]} dxe4 {[%emt 0:01:23]} 6. Bxc6+ {[%emt 0:01:01] B23: Closed Sicilian: Lines without g3.} bxc6 {[%emt 0:00:11]} 7. Nxe4 {[%emt 0:00:23]} (7. Ne5 {is more complex.} Ba6 8. Nxe4 Qd5 9. Qf3) 7... Nf6 {[%emt 0:01:38]} 8. Qe2 {[%emt 0:01:23] White is slightly better.} Be7 {[%emt 0:02:17]} 9. O-O {[%emt 0:01:56]} Nxe4 {[%emt 0:03:50]} 10. Qxe4 {[%emt 0:00:32]} Qd5 {[%emt 0:00:13]} 11. d3 {[%emt 0:04:22][%cal Bd2d3,Bd3e4][%mdl 32]} Bf6 {[%emt 0:03:50] [#]} 12. Rb1 $146 {[%emt 0:02:46]} (12. Ne5 {feels hotter.} Ba6 13. Re1 O-O 14. b3) ({Predecessor:} 12. Ne5 O-O 13. Be3 Bxe5 14. Qxe5 c4 15. Rfd1 Ba6 16. Qxd5 cxd5 17. dxc4 Bxc4 18. b3 {½-½ (24) Balakhontsev,E (1972)-Ilkin,A (2200) Ufa 2008}) 12... Qxe4 {[%emt 0:02:36]} 13. dxe4 {[%emt 0:00:23]} Bd4+ {[%emt 0:00:14]} 14. Nxd4 {[%emt 0:13:23]} cxd4 {[%emt 0:00:10]} 15. Rd1 {[%emt 0:01:16]} c5 {[%emt 0:00:52]} 16. c3 {[%emt 0:01:06]} (16. b4 $14) 16... Bb7 $11 {[%emt 0:00:31]} 17. cxd4 {[%emt 0:08:14]} Bxe4 {[%emt 0:02:28]} 18. Ra1 {[%emt 0:03:08]} Rc8 {[%emt 0:02:57]} 19. dxc5 {[%emt 0:06:04]} Rxc5 {[%emt 0:00:34]} (19... Bc2 20. Rd6 $16) 20. Be3 {[%emt 0:00:39]} Rc2 {[%emt 0:01:24][%csl LRb2,LRg2]} 21. Rd2 {[%emt 0:00:15]} Rxd2 {[%emt 0:01:28]} 22. Bxd2 {[%emt 0:00:15][%mdl 4096] Endgame KRB-KRB} Kd7 {[%emt 0:00:38]} 23. Bc3 {[%emt 0:01:14]} Rc8 {[%emt 0:01:41]} 24. Rd1+ {[%emt 0:02:36]} ({But not} 24. Bxg7 Rg8 25. Re1 Bd5 $17) 24... Bd5 {[%emt 0:01:53]} 25. a3 {[%emt 0:02:41]} ({Of course not} 25. Bxg7 Rg8 26. Be5 Rxg2+ 27. Kf1 Rxh2 $15) 25... Kc6 {[%emt 0:02:33]} 26. g3 {[%emt 0:02:36]} f6 {[%emt 0:00:53]} 27. Kf2 {[%emt 0:02:56]} h5 {[%emt 0:01:46]} 28. h4 {[%emt 0:02:45]} Re8 {[%emt 0:01:11]} 29. Re1 {[%emt 0:02:07]} Kb5 {[%emt 0:00:44]} 30. Rd1 {[%emt 0:01:58]} Kc4 {[%emt 0:10:02]} 31. Rd4+ {[%emt 0:02:31]} Kb3 {[%emt 0:03:49]} 32. f5 {[%emt 0:02:47]} Kc2 {[%emt 0:12:31] The position is equal.} 33. fxe6 {[%emt 0:03:57]} Bxe6 {[%emt 0:00:12]} 34. Re4 {[%emt 0:00:41]} Kd3 {[%emt 0:02:46]} 35. Rd4+ {[%emt 0:00:50]} Kc2 {[%emt 0:00:05]} 36. Re4 {[%emt 0:00:51]} Kd3 {[%emt 0:00:32]} 37. Rd4+ {[%emt 0:00:00]} Kc2 {[%emt 0:00:05]} 38. Re4 {[%emt 0:00:03] Weighted Error Value: White=0.07 (flawless) /Black=0.07 (flawless)} 1/2-1/2

[Event "44th Chess Olympiad Women 2022"]
[Site "Chennai"]
[Date "2022.07.30"]
[Round "2.39"]
[White "Granados Ortiz, Maria Jose"]
[Black "San Diego, Marie Antoinette"]
[Result "1-0"]
[ECO "B07"]
[WhiteElo "1753"]
[BlackElo "2101"]
[Annotator "TA"]
[PlyCount "55"]
[EventDate "2022.07.29"]
[EventType "team-tourn"]
[EventCountry "IND"]
[SourceTitle "playchess.com"]
[Source "ChessBase"]
[SourceQuality "1"]
[WhiteTeam "Nicaragua"]
[BlackTeam "Philippines"]
[WhiteTeamCountry "NCA"]
[BlackTeamCountry "PHI"]
[TimeControl "40/5400+30:1800+30"]

{[%evp 9,55,55,45,36,64,49,105,72,129,127,105,69,96,82,91,80,136,143,137,156,147,79,102,69,272,266,241,247,349,348,531,512,578,249,1529,693,1089,1069,2670,2461,2171,2050,2870,2851,29993,29994,29994,29995]} 1. e4 {[%emt 0:00:37]} d6 {[%emt 0:00:31]} 2. d4 {[%emt 0:00:18]} Nf6 {[%emt 0:00:12]} 3. Nc3 {[%emt 0:01:21]} g6 {[%emt 0:00:11]} 4. Be3 {[%emt 0:02:40]} Bg7 {[%emt 0:00:09]} 5. Qd2 {[%emt 0:00:36]} O-O {[%emt 0:02:20]} 6. O-O-O {[%emt 0:00:17] B07: Pirc Defence: Miscellaneous Systems.} a6 {[%emt 0:01:05]} 7. f3 {[%emt 0:00:29]} Re8 {[%emt 0:06:06]} (7... b5 $1 $14) 8. Bh6 {[%emt 0:06:59] White is better.} Bh8 {[%emt 0:10:14]} (8... Bxh6 $142 9. Qxh6 e5) 9. g4 {[%emt 0:01:33]} b5 {[%emt 0:02:32][%cal Bb7b5,Bb5b4][%mdl 32]} 10. h4 {[%emt 0:00:57] [#] White is more active.} b4 $146 {[%emt 0:19:12]} ({Predecessor:} 10... Bb7 11. h5 Nbd7 12. hxg6 fxg6 13. Nh3 e5 14. Be3 exd4 15. Bxd4 Ne5 16. Ng5 Qe7 {0-1 (65) Gade,B (1677)-Meffert,P (1914) Bad Homburg 2017}) 11. Nce2 {[%emt 0:04:20] aiming for h5.} c5 {[%emt 0:06:34]} 12. h5 {[%emt 0:10:39]} Qa5 {[%emt 0:05:48]} (12... Nc6 $142) 13. Kb1 $16 {[%emt 0:05:24]} Nc6 {[%emt 0:06:29]} 14. hxg6 {[%emt 0:02:26]} fxg6 {[%emt 0:02:25]} 15. d5 {[%emt 0:20:58]} ({White should try} 15. Nh3) 15... Ne5 {[%emt 0:02:43]} 16. Nf4 {[%emt 0:00:21] Black must now prevent Qh2.} Nf7 $2 {[%emt 0:19:12] Black cannot hold the game after this.} (16... Rb8 $14) 17. g5 {[%emt 0:05:29]} Nd7 {[%emt 0:01:19]} 18. Qh2 {[%emt 0:01:50][%cal Oh6g7] Threatens to win with Bg7!} Nde5 {[%emt 0:06:16]} (18... Be5 19. Nge2 Nxh6 20. Qxh6) (18... Nxh6 $142 19. Qxh6 Nf8) 19. Ne6 $18 {[%emt 0:01:45][%cal Oh6g7] The board is on fire.} Bxe6 {[%emt 0:02:48]} (19... Nd8 {is a better defense.}) 20. dxe6 {[%emt 0:00:09]} Nd8 {[%emt 0:00:16] [#]} 21. f4 {[%emt 0:06:49]} (21. Bg7 $142 $1 {[%mdl 512]} Bxg7 22. Qxh7+ Kf8 23. f4) 21... Nec6 $2 {[%emt 0:02:55] [#]} (21... Ng4 22. Qe2 (22. Qh3 Nf2 $11) 22... b3 23. cxb3 Qb4) 22. f5 {[%emt 0:09:43]} (22. Bg7 $142 $1 {[%mdl 512]} Bxg7 (22... h5 23. gxh6) 23. Qxh7+ Kf8 24. Qxg6) 22... Be5 {[%emt 0:00:39]} 23. Qh4 {[%emt 0:00:49][%cal Oh6g7] Hoping for Bg7!} Nd4 {[%emt 0:01:19] [#]} 24. Bg7 $1 {[%emt 0:03:34][%mdl 512]} Bxg7 {[%emt 0:00:36]} (24... h5 25. gxh6) 25. Qxh7+ {[%emt 0:00:03]} Kf8 {[%emt 0:00:05]} 26. Qxg6 {[%emt 0:00:15] Threatening mate with Rh7.} Qa4 {[%emt 0:00:54] [#]} 27. Rxd4 $1 {[%emt 0:02:41][%mdl 512]} cxd4 {[%emt 0:00:28]} (27... b3 28. Rxa4) 28. Rh7 {[%emt 0:00:14] Weighted Error Value: White=0.49/Black=0.84} 1-0

[Event "44th Chess Olympiad Women 2022"]
[Site "Chennai"]
[Date "2022.07.30"]
[Round "2.40"]
[White "Zairbek kyzy, Begimai"]
[Black "Abrorova, Sabrina"]
[Result "1-0"]
[ECO "B22"]
[WhiteElo "1949"]
[BlackElo "1799"]
[Annotator "TA"]
[PlyCount "57"]
[EventDate "2022.07.29"]
[EventType "team-tourn"]
[EventCountry "IND"]
[SourceTitle "playchess.com"]
[Source "ChessBase"]
[SourceQuality "1"]
[WhiteTeam "Kyrgyzstan"]
[BlackTeam "Tajikistan"]
[WhiteTeamCountry "KGZ"]
[BlackTeamCountry "TJK"]
[TimeControl "40/5400+30:1800+30"]

{[%evp 24,57,0,0,0,0,0,0,0,-17,0,0,-8,-2,-11,-12,-2,-11,49,90,56,37,90,94,155,126,589,584,1064,1086,1085,1032,1035,992,1712,938]} 1. e4 {[%emt 0:00:02]} c5 {[%emt 0:00:17]} 2. c3 {[%emt 0:00:07]} Nf6 {[%emt 0:00:18]} 3. e5 {[%emt 0:00:06]} Nd5 {[%emt 0:00:25]} 4. d4 {[%emt 0:00:05]} cxd4 {[%emt 0:00:29]} 5. Nf3 {[%emt 0:03:45]} Nc6 {[%emt 0:00:54]} 6. cxd4 {[%emt 0:00:20]} d6 {[%emt 0:00:27]} 7. Bc4 {[%emt 0:01:16]} e6 {[%emt 0:00:43]} 8. O-O {[%emt 0:00:11]} Be7 {[%emt 0:00:42]} 9. Qe2 {[%emt 0:00:18]} O-O {[%emt 0:00:42]} 10. Nc3 {[%emt 0:00:12]} Nxc3 {[%emt 0:01:35]} 11. bxc3 {[%emt 0:00:02]} dxe5 {[%emt 0:00:57]} 12. dxe5 {[%emt 0:00:05]} Qc7 {[%emt 0:02:33]} 13. Qe4 {[%emt 0:05:52] 13.Bd3 might become the main line.} b6 {[%emt 0:04:12] B22: Sicilian: 2 c3.} 14. Bd3 {[%emt 0:04:30][%csl Gd3][%cal Re4h7] [#]} g6 {[%emt 0:00:33]} 15. Bh6 {[%emt 0:11:45]} Rd8 {[%emt 0:02:04] The position is equal.} 16. Rad1 {[%emt 0:02:10]} Bb7 {[%emt 0:02:08][%cal Oc6b4] Black wants to play ...Nb4!} 17. Qf4 {[%emt 0:00:40] Against Nb4} Rd5 {[%emt 0:03:45][%cal Rc6e5]} 18. Be4 {[%emt 0:13:26]} Rxd1 {[%emt 0:02:04]} 19. Rxd1 {[%emt 0:00:01]} Rd8 {[%emt 0:05:40]} 20. Re1 {[%emt 0:01:09]} Na5 {[%emt 0:09:14]} (20... Rd7 $11) 21. Bxb7 $40 {[%emt 0:03:24][%mdl 128] White goes for the king.} Nxb7 {[%emt 0:02:08]} 22. Ng5 $1 {[%emt 0:21:26] [#]} Bxg5 $146 {[%emt 0:38:08]} (22... Bf8 $1 $14 23. Bxf8 Rxf8) ({Predecessor:} 22... f6 23. Nxe6 Qxc3 24. Rc1 Rd7 25. exf6 Qxf6 26. Qc4 Nd6 27. Qd5 Qf5 28. Qb3 Qf7 29. g3 Bf6 30. Rd1 {½-½ (30) Jurjevic,I-Jandke,M freechess.de 2017}) 23. Qxg5 $16 {[%emt 0:00:48] Qf6 would kill now.} Qxc3 {[%emt 0:02:19]} ({Black should play} 23... f5) 24. Rc1 {[%emt 0:00:20] And now Qxd8+ would win.} Qd3 {[%emt 0:07:40][%mdl 8192] This move loses the game for Black.} (24... f6 $16 25. exf6 (25. Rxc3 $2 Rd1#) 25... Qd4 26. f7+ Kxf7 27. Rc7+ Kg8) 25. h3 $18 {[%emt 0:01:47] White threatens Qf6 and mate. White is clearly winning.} (25. Qf6 $2 {[#] gets mated.} Qd1+ $3 {[%mdl 512]} 26. Rxd1 Rxd1#) 25... Qf5 {[%emt 0:01:01]} 26. Qe7 {[%emt 0:03:18]} Qh5 {[%emt 0:01:36]} 27. Bg5 {[%emt 0:07:25]} Rf8 {[%emt 0:05:02]} 28. Kh2 {[%emt 0:05:07]} Qe2 {[%emt 0:06:21]} 29. Qf6 {[%emt 0:00:19] Weighted Error Value: White=0.05 (flawless) /Black=0.64} 1-0

[Event "44th Chess Olympiad Women 2022"]
[Site "Chennai"]
[Date "2022.07.30"]
[Round "2.40"]
[White "Saidova, Rukhshona"]
[Black "Samaganova, Alexandra"]
[Result "0-1"]
[ECO "B42"]
[WhiteElo "1624"]
[BlackElo "1864"]
[Annotator "NA COMBH"]
[PlyCount "50"]
[EventDate "2022.07.29"]
[EventType "team-tourn"]
[EventCountry "IND"]
[SourceTitle "playchess.com"]
[Source "ChessBase"]
[SourceQuality "1"]
[WhiteTeam "Tajikistan"]
[BlackTeam "Kyrgyzstan"]
[WhiteTeamCountry "TJK"]
[BlackTeamCountry "KGZ"]
[TimeControl "40/5400+30:1800+30"]

1. e4 {[%emt 0:00:15]} c5 {[%emt 0:00:15]} 2. Nf3 {[%emt 0:00:12]} e6 {[%emt 0:00:30]} 3. d4 {[%emt 0:00:21]} cxd4 {[%emt 0:00:00]} 4. Nxd4 {[%emt 0:00:09]} a6 {[%emt 0:00:27]} 5. c4 {[%emt 0:00:47]} Qc7 {[%emt 0:00:22]} 6. Bd3 {[%emt 0:01:03]} Nf6 {[%emt 0:00:43]} 7. Qe2 {[%emt 0:01:18]} d6 {[%emt 0:02:04]} 8. O-O {[%emt 0:01:21]} Be7 {[%emt 0:01:58]} 9. Be3 {[%emt 0:02:59]} Nbd7 {[%emt 0:02:11]} 10. f4 {[%emt 0:01:34]} b6 {[%emt 0:09:02]} 11. Nd2 {[%emt 0:04:35]} Bb7 {[%emt 0:07:25]} 12. b4 {[%emt 0:02:48]} Rc8 {[%emt 0:02:21]} 13. Rac1 {[%emt 0:06:55]} Qb8 {[%emt 0:02:50]} 14. Bf2 {[%emt 0:08:36]} O-O {[%emt 0:15:17]} 15. g4 {[%emt 0:10:50]} g6 {[%emt 0:11:02]} 16. g5 {[%emt 0:04:18]} Nh5 {[%emt 0:01:52]} 17. Qg4 {[%emt 0:06:40]} Rc7 {[%emt 0:09:44]} 18. N4f3 {[%emt 0:12:55]} d5 {[%emt 0:09:43]} 19. a3 {[%emt 0:08:34]} Qc8 {[%emt 0:08:23]} 20. Be3 {[%emt 0:10:16]} dxe4 {[%emt 0:04:40]} 21. Nxe4 {[%emt 0:12:13]} Bxe4 {[%emt 0:01:25]} 22. Bxe4 {[%emt 0:00:15]} Rxc4 {[%emt 0:00:23]} 23. Bd3 {[%emt 0:01:11]} Rxc1 {[%emt 0:01:18]} 24. Rxc1 {[%emt 0:00:12]} Qb7 {[%emt 0:00:22]} 25. Nd4 {[%emt 0:02:10]} Rc8 {[%emt 0:04:37]} 0-1

[Event "44th Chess Olympiad Women 2022"]
[Site "Chennai"]
[Date "2022.07.30"]
[Round "2.40"]
[White "Abaeva, Aiana"]
[Black "Hotami, Mutriba"]
[Result "1-0"]
[ECO "E94"]
[WhiteElo "1595"]
[BlackElo "1846"]
[Annotator "NA COMBH"]
[PlyCount "61"]
[EventDate "2022.07.29"]
[EventType "team-tourn"]
[EventCountry "IND"]
[SourceTitle "playchess.com"]
[Source "ChessBase"]
[SourceQuality "1"]
[WhiteTeam "Kyrgyzstan"]
[BlackTeam "Tajikistan"]
[WhiteTeamCountry "KGZ"]
[BlackTeamCountry "TJK"]
[TimeControl "40/5400+30:1800+30"]

1. Nf3 {[%emt 0:00:06]} Nf6 {[%emt 0:00:06]} 2. d4 {[%emt 0:00:10]} g6 {[%emt 0:00:07]} 3. c4 {[%emt 0:00:33]} Bg7 {[%emt 0:00:18]} 4. Nc3 {[%emt 0:00:44]} d6 {[%emt 0:00:06]} 5. e4 {[%emt 0:00:30]} O-O {[%emt 0:00:26]} 6. Be2 {[%emt 0:00:50]} e5 {[%emt 0:00:31]} 7. d5 {[%emt 0:12:30]} Nbd7 {[%emt 0:01:23]} 8. O-O {[%emt 0:01:50]} Ne8 {[%emt 0:00:17]} 9. Be3 {[%emt 0:05:53]} f5 {[%emt 0:07:13]} 10. exf5 {[%emt 0:02:09]} gxf5 {[%emt 0:00:11]} 11. Bg5 {[%emt 0:05:38]} Ndf6 {[%emt 0:02:17]} 12. b4 {[%emt 0:07:11]} Qe7 {[%emt 0:11:56]} 13. Rc1 {[%emt 0:03:44]} Kh8 {[%emt 0:06:01]} 14. Qc2 {[%emt 0:04:04]} Qf7 {[%emt 0:08:53]} 15. Nh4 {[%emt 0:11:37]} e4 {[%emt 0:01:27]} 16. Qd2 {[%emt 0:05:13]} Nh5 {[%emt 0:10:41]} 17. f3 {[%emt 0:06:49]} exf3 {[%emt 0:07:13]} 18. Rxf3 {[%emt 0:02:17]} f4 {[%emt 0:10:59]} 19. Rf2 {[%emt 0:03:33]} h6 {[%emt 0:14:35]} 20. Bxf4 {[%emt 0:00:22]} Nxf4 {[%emt 0:00:13]} 21. Rxf4 {[%emt 0:00:18]} Nf6 {[%emt 0:04:11]} 22. Rcf1 {[%emt 0:00:47]} Kg8 {[%emt 0:04:27]} 23. Bd3 {[%emt 0:04:20]} Qh5 {[%emt 0:04:11]} 24. Ne4 {[%emt 0:02:59]} Ng4 {[%emt 0:02:18]} 25. Rxf8+ {[%emt 0:02:51]} Bxf8 {[%emt 0:00:05]} 26. Qf4 {[%emt 0:00:18]} Bg7 {[%emt 0:01:16]} 27. Ng3 {[%emt 0:00:21]} Qe8 {[%emt 0:01:28]} 28. Ngf5 {[%emt 0:01:24]} Bxf5 {[%emt 0:00:29]} 29. Nxf5 {[%emt 0:00:46]} h5 {[%emt 0:00:43]} 30. Qg5 {[%emt 0:01:25]} Qe5 {[%emt 0:00:51]} 31. Ne7+ {[%emt 0:00:22]} 1-0

[Event "44th Chess Olympiad Women 2022"]
[Site "Chennai"]
[Date "2022.07.30"]
[Round "2.40"]
[White "Antonova, Lidiya"]
[Black "Sovetbekova, Nurai"]
[Result "0-1"]
[ECO "B23"]
[WhiteElo "1497"]
[BlackElo "1693"]
[Annotator "NA COMBH"]
[PlyCount "44"]
[EventDate "2022.07.29"]
[EventType "team-tourn"]
[EventCountry "IND"]
[SourceTitle "playchess.com"]
[Source "ChessBase"]
[SourceQuality "1"]
[WhiteTeam "Tajikistan"]
[BlackTeam "Kyrgyzstan"]
[WhiteTeamCountry "TJK"]
[BlackTeamCountry "KGZ"]
[TimeControl "40/5400+30:1800+30"]

1. e4 {[%emt 0:00:03]} c5 {[%emt 0:00:25]} 2. Nc3 {[%emt 0:00:11]} d6 {[%emt 0:00:27]} 3. f4 {[%emt 0:00:59]} Nc6 {[%emt 0:04:51]} 4. Bc4 {[%emt 0:01:33]} g6 {[%emt 0:05:26]} 5. Nf3 {[%emt 0:01:24]} Bg7 {[%emt 0:00:53]} 6. O-O {[%emt 0:00:35]} e6 {[%emt 0:03:30]} 7. f5 {[%emt 0:03:59]} gxf5 {[%emt 0:26:03]} 8. exf5 {[%emt 0:10:22]} d5 {[%emt 0:06:28]} 9. Bb5 {[%emt 0:21:06]} Nge7 {[%emt 0:10:39]} 10. fxe6 {[%emt 0:05:50]} Bxe6 {[%emt 0:02:37]} 11. Ng5 {[%emt 0:04:45]} Qd7 {[%emt 0:09:06]} 12. d3 {[%emt 0:19:17]} Ng6 {[%emt 0:11:10]} 13. Nxe6 {[%emt 0:05:10]} fxe6 {[%emt 0:02:42]} 14. Bg5 {[%emt 0:07:26]} Bd4+ {[%emt 0:03:37]} 15. Kh1 {[%emt 0:00:39]} Qg7 {[%emt 0:02:10]} 16. Qg4 {[%emt 0:03:29]} Nge7 {[%emt 0:02:10]} 17. Bxc6+ {[%emt 0:03:33]} bxc6 {[%emt 0:00:41]} 18. Rae1 {[%emt 0:00:56]} e5 {[%emt 0:02:47]} 19. Qh5+ {[%emt 0:02:46]} Qg6 {[%emt 0:01:59]} 20. Qg4 {[%emt 0:04:19]} Rg8 {[%emt 0:01:53]} 21. h4 {[%emt 0:02:01]} h6 {[%emt 0:00:22]} 22. Rf6 {[%emt 0:00:19]} Qxf6 {[%emt 0:00:33]} 0-1

[Event "44th Chess Olympiad Women 2022"]
[Site "Chennai"]
[Date "2022.07.30"]
[Round "2.41"]
[White "February, Jesse Nikki"]
[Black "Mpinganjira, Ellen"]
[Result "1-0"]
[ECO "B40"]
[WhiteElo "1872"]
[BlackElo "1334"]
[Annotator "NA RC COMBH"]
[PlyCount "37"]
[EventDate "2022.07.29"]
[EventType "team-tourn"]
[EventCountry "IND"]
[SourceTitle "playchess.com"]
[Source "ChessBase"]
[SourceQuality "1"]
[WhiteTeam "South Africa"]
[BlackTeam "MAW"]
[WhiteTeamCountry "RSA"]
[TimeControl "40/5400+30:1800+30"]

1. e4 {[%emt 0:00:09]} c5 {[%emt 0:00:21]} 2. Nf3 {[%emt 0:00:09]} e6 {[%emt 0:00:38]} 3. d4 {[%emt 0:00:22]} cxd4 {[%emt 0:00:30]} 4. Nxd4 {[%emt 0:00:10]} Nf6 {[%emt 0:00:07]} 5. Bd3 {[%emt 0:00:47]} Bc5 {[%emt 0:02:04]} 6. Nb3 {[%emt 0:01:17]} Bb6 {[%emt 0:01:47]} 7. O-O {[%emt 0:00:41]} Nc6 {[%emt 0:00:58]} 8. Nc3 {[%emt 0:02:34]} O-O {[%emt 0:00:53]} 9. Bg5 {[%emt 0:02:26]} d6 {[%emt 0:00:48]} 10. Qd2 {[%emt 0:07:08]} a6 {[%emt 0:04:09]} 11. Rad1 {[%emt 0:01:36]} Bc7 {[%emt 0:01:26]} 12. f4 {[%emt 0:01:20]} b5 {[%emt 0:07:09]} 13. a3 {[%emt 0:10:44]} Bb7 {[%emt 0:02:04]} 14. Qe1 {[%emt 0:02:53]} Qe7 {[%emt 0:03:28]} 15. Qg3 {[%emt 0:04:34]} Kh8 {[%emt 0:04:34]} 16. Qh3 {[%emt 0:02:49]} g6 {[%emt 0:03:20]} 17. e5 {[%emt 0:02:25]} dxe5 {[%emt 0:00:50]} 18. Ne4 {[%emt 0:00:20]} Qd7 {[%emt 0:07:26]} 19. Bxf6+ {[%emt 0:00:19]} 1-0